bitfinex-derivatives/quotes_SOLF0:USTF0_20260311
["timestamp","ask_amount","ask_price","bid_price","bid_amount"]
[1773248963159,10.37,86.771,86.738,13.97209177]
[1773248963764,10.37,86.771,86.739,13.97209177]
[1773248964168,10.37,86.771,86.74,13.97209177]
[1773248965960,10.37,86.771,86.741,13.97209177]
[1773248966468,10.37,86.771,86.74,13.97209177]
[1773248966670,15.2101198,86.778,86.741,13.97209177]
[1773248966872,7.72091375,86.777,86.739,13.97209177]
[1773248967169,2.87979395,86.776,86.74,13.97209177]
[1773248967370,2.87979395,86.775,86.74,13.97209177]
[1773248967560,2.87979395,86.774,86.74,13.97209177]
[1773248967765,4.8411198,86.777,86.741,13.97209177]
[1773248967965,2.8797966,86.776,86.74,13.97209177]
[1773248968171,7.7209164,86.775,86.739,13.97209177]
[1773248968373,10.37,86.772,86.739,13.97209177]
[1773248968767,10.37,86.772,86.74,13.97209177]
[1773248969471,10.37,86.772,86.741,13.97209177]
[1773248969669,20.733,86.804,86.741,13.97209177]
[1773248969670,10.369,86.778,86.742,4.78839289]
[1773248969973,2.8797966,86.777,86.742,4.78839289]
[1773248970180,10.37,86.775,86.742,4.78839289]
[1773248970387,4.8411198,86.799,86.751,4.78839289]
[1773248970571,4.8411198,86.797,86.754,13.97209177]
[1773248970877,4.8411198,86.795,86.749,13.97209177]
[1773248971081,2.47841707,86.8,86.742,4.78839289]
[1773248971082,4.8411198,86.793,86.753,13.97209177]
[1773248971281,4.8411198,86.791,86.753,13.97209177]
[1773248971472,10.368,86.788,86.754,13.97209177]
[1773248972281,10.369,86.782,86.754,13.97209177]
[1773248972984,10.369,86.782,86.746,4.78839289]
[1773248974988,10.368,86.789,86.749,4.78839289]
[1773248975187,2.87931197,86.788,86.749,4.78839289]
[1773248975388,2.87931197,86.787,86.749,4.78839289]
[1773248975585,10.368,86.789,86.749,4.78839289]
[1773248975783,2.87930644,86.788,86.749,4.78839289]
[1773248975984,2.87930644,86.787,86.751,4.78839289]
[1773248976291,4.8411198,86.802,86.751,4.78839289]
[1773248976486,2.87930644,86.801,86.751,4.78839289]
[1773248976788,2.87930644,86.8,86.751,4.78839289]
[1773248976990,2.87930644,86.799,86.751,4.78839289]
[1773248977289,2.87930644,86.798,86.751,4.78839289]
[1773248977583,2.87930644,86.798,86.716,34.59]
[1773248977584,4.8411198,86.816,86.771,4.78839289]
[1773248977886,4.8411198,86.789,86.75,1.47748466]
[1773248978187,4.8411198,86.789,86.73,2.47841707]
[1773248978188,4.8411198,86.787,86.72,2.47841707]
[1773248978388,4.8411198,86.785,86.72,2.47841707]
[1773248978591,4.8411198,86.783,86.74,2.47841707]
[1773248978780,2.87900559,86.782,86.738,10.374]
[1773248978979,2.87900559,86.781,86.738,10.374]
[1773248979288,4.8411198,86.779,86.738,10.374]
[1773248979484,2.87900559,86.778,86.738,10.374]
[1773248979681,4.8411198,86.779,86.738,10.374]
[1773248980593,10.37,86.776,86.738,10.374]
[1773248982092,10.37,86.776,86.734,4.78839289]
[1773248982686,10.37,86.776,86.735,10.374]
[1773248982992,10.37,86.776,86.736,4.8072291]
[1773248983388,4.85088172,86.775,86.736,4.8072291]
[1773248983691,4.85088172,86.772,86.721,4.8072291]
[1773248984490,4.85088172,86.77,86.731,4.8072291]
[1773248984887,10.369,86.778,86.741,4.8072291]
[1773248985791,4.85088172,86.782,86.74,2.47841707]
[1773248985792,4.85088172,86.782,86.743,4.8072291]
[1773248986095,10.369,86.781,86.746,10.373]
[1773248986491,15.21988172,86.781,86.743,4.8072291]
[1773248987292,15.21988172,86.781,86.744,15.1802291]
[1773248987293,4.85088172,86.781,86.744,15.1802291]
[1773248987496,4.85088172,86.781,86.745,4.8072291]
[1773248988399,13.24859583,86.78,86.745,4.8072291]
[1773248988595,4.85088172,86.778,86.731,4.8072291]
[1773248988996,4.85088172,86.774,86.731,4.8072291]
[1773248990496,4.85088172,86.774,86.732,4.98269724]
[1773248991696,5.00232382,86.772,86.721,4.98269724]
[1773248991894,5.00232382,86.77,86.721,4.98269724]
[1773248992192,7.88209905,86.769,86.721,4.98269724]
[1773248992498,7.88209905,86.769,86.72,2.47841707]
[1773248992499,5.00232382,86.782,86.731,4.98269724]
[1773248992694,5.00232382,86.78,86.731,4.98269724]
[1773248992895,5.00232382,86.778,86.731,4.98269724]
[1773248993099,5.00232382,86.776,86.731,4.98269724]
[1773248993416,10.37,86.773,86.734,10.374]
[1773248995299,10.37,86.773,86.739,10.374]
[1773248995498,10.371,86.766,86.735,4.98269724]
[1773248995699,5.00232382,86.774,86.735,4.98269724]
[1773248995894,5.00232382,86.774,86.735,15.35669724]
[1773248997400,10.37,86.773,86.735,15.35669724]
[1773248998503,5.00232382,86.788,86.743,4.98269724]
[1773248998695,5.00232382,86.786,86.743,4.98269724]
[1773248998900,5.00232382,86.784,86.74,2.47841707]
[1773248999695,5.00232382,86.782,86.731,4.98269724]
[1773249000000,5.00232382,86.78,86.731,4.98269724]
[1773249000192,5.00232382,86.778,86.731,4.98269724]
[1773249000390,5.00232382,86.776,86.731,4.98269724]
[1773249000604,5.00232382,86.774,86.731,4.98269724]
[1773249001295,5.00232382,86.774,86.725,10.376]
[1773249001296,10.371,86.761,86.725,10.376]
[1773249002593,10.371,86.761,86.723,20.95813765]
[1773249002804,10.371,86.761,86.723,4.98269724]
[1773249003197,10.371,86.761,86.724,10.376]
[1773249003398,5.00232382,86.739,86.692,2.44913765]
[1773249003701,5.00232382,86.739,86.636,34.62867395]
[1773249003702,2.47841707,86.71,86.661,4.98269724]
[1773249003897,5.00232382,86.708,86.661,4.98269724]
[1773249004203,5.00232382,86.706,86.661,15.36569724]
[1773249004706,5.00232382,86.706,86.661,4.98269724]
[1773249005002,10.378,86.703,86.661,4.98269724]
[1773249005998,5.00232382,86.706,86.661,4.98269724]
[1773249006801,5.00232382,86.706,86.664,10.383]
[1773249007000,5.00232382,86.706,86.661,4.98269724]
[1773249008200,10.378,86.703,86.661,4.98269724]
[1773249008798,5.00232382,86.706,86.663,10.383]
[1773249009002,5.00232382,86.706,86.664,4.98269724]
[1773249010304,2.47841707,86.72,86.671,4.98269724]
[1773249010305,10.376,86.719,86.671,4.98269724]
[1773249011401,10.376,86.719,86.675,15.36469724]
[1773249011608,5.00232382,86.718,86.675,4.98269724]
[1773249011908,5.00232382,86.718,86.676,4.98269724]
[1773249012206,10.377,86.715,86.676,4.98269724]
[1773249013006,10.376,86.724,86.676,4.98269724]
[1773249013302,5.00232382,86.723,86.676,4.98269724]
[1773249013702,5.00232382,86.723,86.676,15.36369724]
[1773249014303,5.00232382,86.723,86.684,10.38]
[1773249014608,5.00232382,86.723,86.68,2.47841707]
[1773249014805,15.37832382,86.723,86.678,10.381]
[1773249015008,5.00232382,86.722,86.678,10.381]
[1773249015201,5.00232382,86.735,86.691,4.98269724]
[1773249016002,10.374,86.743,86.695,4.98269724]
[1773249016204,10.374,86.743,86.7,2.47841707]
[1773249016398,5.00232382,86.747,86.701,4.98269724]
[1773249016600,10.372,86.754,86.711,4.98269724]
[1773249017712,5.00232382,86.753,86.711,4.98269724]
[1773249018305,5.00232382,86.753,86.712,10.377]
[1773249019110,5.00232382,86.744,86.69,2.47841707]
[1773249020410,10.375,86.734,86.691,10.38]
[1773249022507,4.5563442,86.741,86.691,10.38]
[1773249023610,4.5563442,86.737,86.691,10.38]
[1773249024410,10.376,86.726,86.686,4.98269724]
[1773249024804,4.5563442,86.737,86.686,4.98269724]
[1773249026405,4.5563442,86.733,86.687,10.38]
[1773249026707,4.5563442,86.719,86.672,4.52064134]
[1773249026902,4.5563442,86.715,86.672,4.52064134]
[1773249027106,4.5563442,86.729,86.681,4.52064134]
[1773249028111,4.5563442,86.729,86.69,2.48106926]
[1773249028416,4.5563442,86.729,86.694,10.379]
[1773249032718,4.5563442,86.729,86.7,10.379]
[1773249032918,4.5563442,86.729,86.691,4.52064134]
[1773249033716,4.5563442,86.729,86.68,2.48106926]
[1773249033924,10.376,86.722,86.681,14.90164134]
[1773249034518,4.5563442,86.728,86.691,4.52064134]
[1773249035422,4.5563442,86.747,86.701,4.52064134]
[1773249036219,4.5563442,86.747,86.659,34.59]
[1773249036220,4.5563442,86.761,86.72,7.0017106]
[1773249037522,4.5563442,86.76,86.72,7.0017106]
[1773249037819,4.5563442,86.76,86.72,4.52064134]
[1773249038419,10.372,86.758,86.72,4.52064134]
[1773249040124,4.5563442,86.76,86.722,4.52064134]
[1773249040423,4.5563442,86.766,86.722,4.52064134]
[1773249040620,4.60739248,86.764,86.722,4.52064134]
[1773249040818,4.60739248,86.759,86.722,4.52064134]
[1773249041117,4.60739248,86.759,86.71,2.48106926]
[1773249041323,4.60739248,86.759,86.71,6.92930214]
[1773249041523,4.60739248,86.759,86.711,4.44823288]
[1773249042527,14.52,86.793,86.701,4.44823288]
[1773249042528,4.60739248,86.756,86.701,4.44823288]
[1773249042825,4.60739248,86.754,86.701,4.44823288]
[1773249043020,4.60739248,86.754,86.71,2.48106926]
[1773249043418,4.60739248,86.734,86.688,4.44823288]
[1773249044423,10.375,86.731,86.689,10.38]
[1773249046427,10.375,86.731,86.69,2.48106926]
[1773249046428,14.98239248,86.731,86.69,2.48106926]
[1773249046621,10.375,86.728,86.69,2.48106926]
[1773249047024,10.375,86.728,86.689,10.38]
[1773249049225,4.60739248,86.73,86.689,10.38]
[1773249049431,4.60739248,86.743,86.695,4.44823288]
[1773249049632,4.60739248,86.741,86.695,4.44823288]
[1773249049828,10.375,86.732,86.695,4.44823288]
[1773249050930,4.74974651,86.739,86.7,2.48106926]
[1773249051130,4.74974651,86.739,86.701,4.3450915]
[1773249051426,4.74974651,86.759,86.701,4.3450915]
[1773249051621,2.48106926,86.76,86.7,2.48106926]
[1773249051622,15.12274651,86.748,86.702,4.3450915]
[1773249051826,2.88076642,86.747,86.702,4.3450915]
[1773249052025,2.88076642,86.746,86.702,4.3450915]
[1773249052221,2.88076642,86.745,86.702,4.3450915]
[1773249052529,4.74974651,86.748,86.713,10.377]
[1773249052825,2.88090518,86.747,86.702,4.3450915]
[1773249053031,2.88090518,86.746,86.702,4.3450915]
[1773249053228,2.88090518,86.745,86.702,4.3450915]
[1773249053536,4.74974651,86.748,86.702,4.3450915]
[1773249053729,2.88090518,86.747,86.702,4.3450915]
[1773249053929,2.88090518,86.746,86.702,4.3450915]
[1773249054129,4.74974651,86.748,86.702,4.3450915]
[1773249054429,2.88090518,86.747,86.707,4.3450915]
[1773249054629,2.88090518,86.746,86.707,4.3450915]
[1773249054832,2.88090518,86.746,86.7,2.48106926]
[1773249054833,4.74974651,86.761,86.711,4.3450915]
[1773249055025,2.88070927,86.76,86.711,4.3450915]
[1773249055332,2.88070927,86.759,86.711,4.3450915]
[1773249055634,2.88070927,86.758,86.711,4.3450915]
[1773249055832,2.88070927,86.757,86.711,4.3450915]
[1773249056027,2.88070927,86.756,86.711,4.3450915]
[1773249056222,2.88070927,86.755,86.711,4.3450915]
[1773249056433,2.88070927,86.754,86.714,10.377]
[1773249056628,2.88070927,86.753,86.714,10.377]
[1773249056827,2.88070927,86.752,86.714,4.3450915]
[1773249057030,2.88070927,86.752,86.676,28.00883996]
[1773249057031,4.74974651,86.779,86.731,4.3450915]
[1773249057330,4.74974651,86.777,86.731,4.3450915]
[1773249057631,4.74974651,86.775,86.731,4.3450915]
[1773249057931,10.37,86.771,86.732,10.375]
[1773249058126,2.88026305,86.77,86.732,10.375]
[1773249058430,2.88026305,86.769,86.732,10.375]
[1773249058619,4.74974651,86.767,86.731,4.3450915]
[1773249059126,7.6297693,86.766,86.731,4.3450915]
[1773249059332,4.74974651,86.765,86.725,10.376]
[1773249060731,4.74974651,86.759,86.707,4.3450915]
[1773249060928,4.74974651,86.757,86.707,4.3450915]
[1773249061229,4.74974651,86.755,86.707,4.3450915]
[1773249061429,2.88014339,86.754,86.707,4.3450915]
[1773249061733,2.88014339,86.753,86.707,4.3450915]
[1773249061927,2.88014339,86.752,86.714,14.7220915]
[1773249062134,4.74974651,86.755,86.715,4.3450915]
[1773249062333,4.74974651,86.768,86.721,4.3450915]
[1773249062632,10.371,86.766,86.722,10.376]
[1773249062831,2.8802581,86.765,86.723,4.3450915]
[1773249063030,2.8802581,86.764,86.723,4.3450915]
[1773249063328,4.74974651,86.759,86.711,4.3450915]
[1773249063532,4.74974651,86.739,86.686,4.3450915]
[1773249063730,4.74974651,86.737,86.686,4.3450915]
[1773249063937,4.74974651,86.735,86.686,4.3450915]
[1773249064132,4.74974651,86.726,86.686,4.3450915]
[1773249065423,10.376,86.725,86.686,4.3450915]
[1773249067732,4.74974651,86.713,86.672,4.3450915]
[1773249069533,2.48106926,86.73,86.674,4.3450915]
[1773249069732,4.74974651,86.737,86.691,4.3450915]
[1773249070038,2.88098709,86.736,86.691,4.3450915]
[1773249070338,2.88098709,86.735,86.691,4.3450915]
[1773249070536,15.12374651,86.735,86.691,4.3450915]
[1773249070835,7.6308089,86.734,86.691,4.3450915]
[1773249071035,4.74974651,86.734,86.691,4.3450915]
[1773249071239,4.74974651,86.734,86.693,10.379]
[1773249071437,4.74974651,86.734,86.693,14.7240915]
[1773249071734,4.74974651,86.734,86.699,10.379]
[1773249071927,4.74974651,86.749,86.701,4.3450915]
[1773249072130,4.74974651,86.762,86.71,2.48106926]
[1773249072330,2.88046957,86.761,86.724,4.3450915]
[1773249072537,4.74974651,86.762,86.724,4.3450915]
[1773249073341,10.371,86.765,86.725,10.376]
[1773249073636,10.371,86.765,86.725,14.7210915]
[1773249079041,4.74974651,86.768,86.725,14.7210915]
[1773249080842,4.58851566,86.766,86.725,4.3450915]
[1773249086452,4.58851566,86.766,86.727,10.375]
[1773249088754,4.58851566,86.766,86.727,14.94742535]
[1773249090063,4.58851566,86.779,86.73,10.375]
[1773249090354,2.87989047,86.778,86.741,4.57242535]
[1773249090560,4.58851566,86.779,86.741,4.57242535]
[1773249091463,4.58851566,86.777,86.741,4.57242535]
[1773249093558,2.87988031,86.776,86.741,4.57242535]
[1773249093760,2.87988031,86.775,86.741,4.57242535]
[1773249093958,4.58851566,86.777,86.741,4.57242535]
[1773249094158,7.46839539,86.776,86.741,4.57242535]
[1773249094358,2.87987973,86.775,86.741,4.57242535]
[1773249094553,4.58851566,86.776,86.741,4.57242535]
[1773249094754,10.369,86.778,86.732,10.375]
[1773249094755,4.58851566,86.774,86.732,10.375]
[1773249095156,4.58851566,86.769,86.725,4.57242535]
[1773249095465,4.58851566,86.769,86.711,4.57242535]
[1773249095665,4.58851566,86.759,86.711,4.57242535]
[1773249095961,4.58851566,86.757,86.711,4.57242535]
[1773249096170,7.46871965,86.756,86.718,10.376]
[1773249096353,2.88020399,86.755,86.718,10.376]
[1773249096552,4.58851566,86.769,86.73,10.375]
[1773249096761,7.46859248,86.768,86.73,10.375]
[1773249096960,2.88007682,86.767,86.73,10.375]
[1773249097162,2.88007682,86.766,86.73,10.375]
[1773249097360,2.88007682,86.765,86.724,4.57242535]
[1773249097556,2.88007682,86.764,86.724,4.57242535]
[1773249097759,4.58851566,86.779,86.728,4.57242535]
[1773249097958,7.46844453,86.778,86.728,4.57242535]
[1773249098159,2.87992887,86.777,86.728,4.57242535]
[1773249098358,2.87992887,86.776,86.728,4.57242535]
[1773249098563,2.87992887,86.776,86.69,14.52]
[1773249098564,2.87992887,86.775,86.731,4.57242535]
[1773249098763,4.58851566,86.777,86.731,4.57242535]
[1773249098764,2.87988354,86.774,86.731,4.57242535]
[1773249098963,4.58851566,86.777,86.731,4.57242535]
[1773249099259,2.879882,86.776,86.731,4.57242535]
[1773249099460,2.879882,86.775,86.731,4.57242535]
[1773249099660,2.879882,86.774,86.731,4.57242535]
[1773249099861,4.58851566,86.777,86.731,4.57242535]
[1773249100061,2.87988238,86.776,86.731,4.57242535]
[1773249100263,2.87988238,86.775,86.731,4.57242535]
[1773249100457,2.87988238,86.775,86.73,2.47888441]
[1773249100458,14.95751566,86.777,86.734,14.94647823]
[1773249100763,4.27266272,86.775,86.735,4.57247823]
[1773249100965,4.27266272,86.769,86.735,4.57247823]
[1773249101160,2.47888441,86.77,86.71,2.47888441]
[1773249101161,4.27266272,86.767,86.711,4.57247823]
[1773249101366,4.27266272,86.767,86.71,2.47888441]
[1773249101367,4.27266272,86.749,86.697,4.57247823]
[1773249101563,4.27266272,86.747,86.697,4.57247823]
[1773249101764,4.27266272,86.745,86.697,4.57247823]
[1773249101960,4.27266272,86.743,86.697,4.57247823]
[1773249102661,4.27266272,86.743,86.698,4.57247823]
[1773249102866,4.27266272,86.751,86.701,4.57247823]
[1773249103165,4.27266272,86.749,86.701,4.57247823]
[1773249103366,4.27266272,86.749,86.704,10.378]
[1773249103562,4.27266272,86.749,86.705,4.57247823]
[1773249104158,4.27266272,86.747,86.705,4.57247823]
[1773249107566,34.59,86.779,86.68,20.95255297]
[1773249107567,4.27266272,86.759,86.711,4.57247823]
[1773249107768,4.27266272,86.757,86.711,4.57247823]
[1773249107959,4.27266272,86.755,86.711,4.57247823]
[1773249108164,4.27266272,86.755,86.71,2.47888441]
[1773249108165,4.27266272,86.755,86.712,4.57247823]
[1773249108468,2.88060326,86.754,86.712,4.57247823]
[1773249108665,4.27266272,86.755,86.712,4.57247823]
[1773249108866,2.88060229,86.754,86.712,4.57247823]
[1773249109065,4.27266272,86.755,86.712,4.57247823]
[1773249109368,4.27266272,86.751,86.701,4.57247823]
[1773249109565,4.27266272,86.749,86.701,4.57247823]
[1773249109770,4.27266272,86.747,86.701,4.57247823]
[1773249110376,4.27266272,86.747,86.703,4.67575626]
[1773249112367,4.27266272,86.747,86.705,15.05375626]
[1773249112568,4.27266272,86.747,86.706,4.67575626]
[1773249113669,4.66573537,86.769,86.71,2.47888441]
[1773249113869,4.66573537,86.767,86.711,4.67575626]
[1773249114072,4.66573537,86.765,86.711,4.67575626]
[1773249114273,10.371,86.762,86.719,15.05175626]
[1773249114575,2.88054659,86.761,86.719,15.05175626]
[1773249114770,2.88054659,86.76,86.719,15.05175626]
[1773249115074,2.88054659,86.759,86.72,4.67575626]
[1773249115274,2.88054635,86.758,86.72,4.67575626]
[1773249115473,2.88054635,86.757,86.72,4.67575626]
[1773249115773,2.88054635,86.756,86.72,4.67575626]
[1773249116069,2.88054635,86.755,86.72,4.67575626]
[1773249116274,2.88054635,86.754,86.72,4.67575626]
[1773249116475,2.88054635,86.753,86.72,4.67575626]
[1773249116775,2.88054635,86.752,86.72,4.67575626]
[1773249116976,2.88054635,86.751,86.72,4.67575626]
[1773249117178,2.88054635,86.75,86.72,4.67575626]
[1773249117372,4.66573537,86.761,86.72,4.67575626]
[1773249117572,4.66573537,86.759,86.72,4.67575626]
[1773249117781,4.66573537,86.755,86.712,10.377]
[1773249118073,4.66573537,86.753,86.712,10.377]
[1773249118278,2.88054529,86.752,86.712,15.05275626]
[1773249118472,2.88054529,86.751,86.712,15.05275626]
[1773249118673,4.66573537,86.749,86.712,4.67575626]
[1773249119179,4.66573537,86.747,86.712,4.67575626]
[1773249120272,4.66573537,86.759,86.715,4.67575626]
[1773249120577,4.66573537,86.757,86.715,4.67575626]
[1773249120778,4.66573537,86.755,86.715,4.67575626]
[1773249120978,4.66573537,86.753,86.715,4.67575626]
[1773249121179,2.88054846,86.752,86.715,4.67575626]
[1773249121374,2.88054846,86.751,86.715,4.67575626]
[1773249121580,4.66573537,86.753,86.715,4.67575626]
[1773249121581,2.88054846,86.75,86.715,4.67575626]
[1773249121774,2.88054846,86.749,86.715,4.67575626]
[1773249121983,4.66573537,86.753,86.715,4.67575626]
[1773249122280,2.88058845,86.752,86.715,4.67575626]
[1773249122482,4.66573537,86.753,86.715,4.67575626]
[1773249122483,2.88058845,86.751,86.715,4.67575626]
[1773249122676,2.88058845,86.75,86.715,4.67575626]
[1773249122871,4.66573537,86.748,86.703,4.67575626]
[1773249123584,2.88058901,86.747,86.711,10.377]
[1773249123886,2.88058901,86.746,86.711,10.377]
[1773249124089,4.66573537,86.748,86.711,10.377]
[1773249124382,2.88058882,86.747,86.711,10.377]
[1773249124578,7.54632419,86.746,86.711,10.377]
[1773249124778,7.54632419,86.745,86.711,10.377]
[1773249124984,4.66573537,86.745,86.711,10.377]
[1773249125487,4.66573537,86.758,86.712,4.67575626]
[1773249125684,4.66573537,86.756,86.712,4.67575626]
[1773249125879,4.66573537,86.745,86.703,10.378]
[1773249126078,4.66573537,86.743,86.703,10.378]
[1773249126278,2.88058964,86.742,86.703,10.378]
[1773249126484,2.88058964,86.741,86.703,10.378]
[1773249126787,2.88058964,86.74,86.704,4.67575626]
[1773249126985,4.66573537,86.765,86.711,4.67575626]
[1773249127182,4.66573537,86.763,86.711,4.67575626]
[1773249127479,4.66573537,86.763,86.692,20.95255297]
[1773249127480,2.88035287,86.762,86.721,4.67575626]
[1773249127681,2.88035287,86.761,86.723,10.376]
[1773249127886,2.88035287,86.76,86.723,10.376]
[1773249128087,2.88035287,86.759,86.723,15.05175626]
[1773249128288,2.88035287,86.758,86.724,4.67575626]
[1773249128489,10.37,86.774,86.726,4.67575626]
[1773249128788,2.88005045,86.773,86.726,4.67575626]
[1773249128987,4.66573537,86.769,86.711,4.67575626]
[1773249129188,4.66573537,86.767,86.711,4.67575626]
[1773249129378,4.66573537,86.765,86.711,4.67575626]
[1773249129581,4.66573537,86.763,86.711,4.67575626]
[1773249130481,4.66573537,86.763,86.72,10.376]
[1773249131289,4.66573537,86.763,86.713,4.67575626]
[1773249131492,4.66573537,86.761,86.713,4.67575626]
[1773249131686,2.88024392,86.76,86.713,4.67575626]
[1773249131887,2.88024392,86.759,86.713,4.67575626]
[1773249132189,4.66573537,86.761,86.713,4.67575626]
[1773249132385,4.66573537,86.759,86.718,10.376]
[1773249132585,4.66573537,86.757,86.701,4.67575626]
[1773249132791,4.66573537,86.755,86.701,4.67575626]
[1773249133086,4.66573537,86.755,86.664,20.766]
[1773249133087,4.66573537,86.709,86.643,4.67575626]
[1773249133286,4.66573537,86.699,86.643,4.67575626]
[1773249133485,2.47888441,86.7,86.643,4.67575626]
[1773249133486,4.66573537,86.697,86.643,4.67575626]
[1773249134584,4.66573537,86.696,86.644,10.385]
[1773249134985,10.38,86.688,86.643,4.67575626]
[1773249135192,4.66573537,86.687,86.643,4.67575626]
[1773249135487,2.88262546,86.712,86.602,10.39]
[1773249135488,2.47888441,86.66,86.602,10.39]
[1773249135691,4.66573537,86.659,86.601,4.67575626]
[1773249135888,4.66573537,86.649,86.601,4.67575626]
[1773249136386,4.66573537,86.649,86.59,2.47888441]
[1773249136992,4.66573537,86.649,86.567,16.52864062]
[1773249136993,4.66573537,86.649,86.6,2.47888441]
[1773249138491,4.66573537,86.648,86.583,3.22081774]
[1773249138692,4.66573537,86.639,86.583,3.22081774]
[1773249138891,4.66573537,86.639,86.59,2.47888441]
[1773249139192,4.66573537,86.639,86.591,3.20990889]
[1773249140089,4.66573537,86.639,86.58,2.47888441]
[1773249140290,4.66573537,86.639,86.521,21.12044562]
[1773249140291,4.49682073,86.619,86.56,5.6971327]
[1773249140683,4.49682073,86.617,86.56,5.6971327]
[1773249140898,2.47888441,86.61,86.56,3.21824829]
[1773249141194,4.49682073,86.609,86.56,3.21824829]
[1773249141393,4.49682073,86.609,86.56,5.6971327]
[1773249141690,4.49682073,86.609,86.565,3.2076452]
[1773249142992,4.49682073,86.609,86.54,6.21963757]
[1773249142993,4.49682073,86.609,86.551,3.25293138]
[1773249143294,4.49682073,86.609,86.541,10.398]
[1773249143295,4.49682073,86.609,86.541,13.65243089]
[1773249143692,4.49682073,86.606,86.541,13.65243089]
[1773249143903,4.49682073,86.606,86.541,3.25443089]
[1773249144292,4.49682073,86.602,86.541,3.25443089]
[1773249144494,4.49682073,86.602,86.542,3.25587049]
[1773249145187,4.49682073,86.601,86.542,3.25587049]
[1773249146394,4.49682073,86.598,86.542,3.25587049]
[1773249146696,4.49682073,86.598,86.527,3.26834757]
[1773249147800,4.49682073,86.598,86.528,3.26968028]
[1773249149301,4.49682073,86.598,86.542,3.30942225]
[1773249149500,20.7650677,86.63,86.542,3.30942225]
[1773249149799,4.49682073,86.629,86.542,3.30942225]
[1773249149993,4.49682073,86.617,86.557,3.30939858]
[1773249151002,4.49682073,86.614,86.558,3.25043377]
[1773249151506,4.49682073,86.61,86.558,3.25043377]
[1773249152106,4.49682073,86.61,86.559,10.395]
[1773249152504,4.49682073,86.61,86.535,14.54]
[1773249152505,4.49682073,86.61,86.541,3.25316826]
[1773249152710,4.49682073,86.596,86.541,3.25316826]
[1773249153411,4.49682073,86.629,86.543,3.26230805]
[1773249154506,4.49682073,86.611,86.55,13.65960205]
[1773249154709,4.49682073,86.611,86.551,3.27192932]
[1773249155913,4.49682073,86.611,86.564,3.27318999]
[1773249156708,4.49682073,86.609,86.557,10.396]
[1773249157102,4.49682073,86.609,86.561,10.395]
[1773249157309,4.49682073,86.609,86.562,3.25037969]
[1773249157705,10.388,86.619,86.562,3.25037969]
[1773249158014,4.49682073,86.623,86.565,3.25034882]
[1773249158210,4.49682073,86.651,86.565,3.25034882]
[1773249158610,4.49682073,86.651,86.583,3.25335912]
[1773249159509,4.49682073,86.651,86.569,3.25458669]
[1773249159510,4.49682073,86.628,86.569,3.25458669]
[1773249161417,14.88382073,86.628,86.574,3.19467303]
[1773249162416,14.87551323,86.622,86.576,3.19577057]
[1773249162618,4.48751323,86.621,86.561,3.19577057]
[1773249163514,10.391,86.599,86.547,3.19665978]
[1773249164921,10.391,86.599,86.556,13.68077909]
[1773249165213,4.48751323,86.603,86.528,3.28586274]
[1773249165419,4.48751323,86.603,86.541,10.398]
[1773249166121,10.392,86.592,86.546,10.397]
[1773249166620,10.392,86.592,86.548,13.6657039]
[1773249166823,10.39,86.602,86.548,3.2687039]
[1773249167319,6.2250677,86.63,86.548,3.2687039]
[1773249167320,10.391,86.599,86.548,3.2687039]
[1773249169319,10.391,86.599,86.551,10.396]
[1773249170325,14.75754173,86.599,86.551,10.396]
[1773249170526,4.36654173,86.595,86.551,10.396]
[1773249171424,10.391,86.593,86.551,10.396]
[1773249172520,4.36654173,86.595,86.551,10.396]
[1773249172727,4.36654173,86.595,86.552,3.28176034]
[1773249174328,4.36654173,86.595,86.555,10.396]
[1773249174528,10.39,86.606,86.556,3.21168956]
[1773249174727,4.36654173,86.608,86.556,3.21168956]
[1773249176431,10.391,86.599,86.556,13.60768956]
[1773249177933,14.75754173,86.599,86.556,13.60768956]
[1773249179835,10.391,86.593,86.556,3.21168956]
[1773249180335,4.36654173,86.599,86.556,3.21168956]
[1773249182532,10.39,86.607,86.56,3.12521257]
[1773249182734,2.88553947,86.606,86.56,3.12521257]
[1773249182930,14.52,86.629,86.56,3.12521257]
[1773249182931,4.36654173,86.626,86.56,3.12521257]
[1773249183131,4.36654173,86.624,86.56,3.12521257]
[1773249183331,4.36654173,86.622,86.56,3.12521257]
[1773249183538,14.52,86.641,86.56,3.12521257]
[1773249183539,4.36654173,86.62,86.56,3.12521257]
[1773249183732,4.36654173,86.618,86.56,3.12521257]
[1773249183931,4.36654173,86.616,86.56,3.12521257]
[1773249184136,4.36654173,86.614,86.56,3.12521257]
[1773249184332,4.36654173,86.612,86.531,3.12430479]
[1773249184534,4.36654173,86.61,86.531,3.12430479]